fUSD/lending_fUSD_20250208
["ID","MTS","AMOUNT","RATE_DAILY","PERIOD"]
[352239538,1739013110014,-755.35,0.00012091,2]
[352239539,1739013110213,-1681.08,0.00012091,2]
[352239540,1739013110223,-1214.99,0.00012091,2]
[352239541,1739013110233,-500.0,0.00012091,2]
[352239542,1739013110243,-623.04,0.00012091,2]
[352239543,1739013110252,-2156.18,0.00012091,2]
[352239544,1739013110262,-5375.13,0.00012091,2]
[352239545,1739013110271,-155.827945,0.00012091,2]
[352239546,1739013110281,-1130.4,0.00012091,2]
[352239547,1739013110290,-2448.76,0.00012091,2]
[352239548,1739013110300,-1595.13,0.00012091,2]
[352239549,1739013110309,-500.0,0.00012092,2]
[352239550,1739013110318,-500.0,0.00012092,2]
[352239551,1739013110327,-647.25,0.00012092,2]
[352239552,1739013110337,-500.0,0.00012092,2]
[352239553,1739013110346,-500.0,0.00012092,2]
[352239554,1739013110356,-500.0,0.00012092,2]
[352239555,1739013110369,-510.2,0.00012092,2]
[352239556,1739013110378,-500.0,0.00012092,2]
[352239557,1739013110387,-500.0,0.00012092,2]
[352239558,1739013110396,-500.0,0.00012092,2]
[352239559,1739013110406,-2124.11,0.00012092,2]
[352239560,1739013110416,-5893.56,0.00012092,2]
[352239561,1739013110425,-3358.801698,0.00012092,2]
[352239562,1739013110434,-1726.29,0.00012092,2]
[352239563,1739013110446,-2160.36,0.00012092,2]
[352239564,1739013110457,-576.21,0.00012092,2]
[352239565,1739013110467,-1327.73,0.00012092,2]
[352239566,1739013110477,-3645.58,0.00012092,2]
[352239567,1739013110486,-3378.237504,0.00012092,2]
[352239568,1739013110495,-152.091761,0.00012092,2]
[352239569,1739013110505,-774.41,0.00012092,2]
[352239570,1739013110514,-2948.09,0.00012092,2]
[352239571,1739013110524,-2267.8,0.00012092,2]
[352239572,1739013110533,-1001.04,0.00012092,2]
[352239573,1739013110543,-500.0,0.00012092,2]
[352239574,1739013110554,-1847.11,0.00012092,2]
[352239575,1739013110563,-500.0,0.00012092,2]
[352239576,1739013110572,-1735.24,0.00012092,2]
[352239577,1739013110582,-1678.32,0.00012092,2]
[352239578,1739013110592,-3512.39,0.00012092,2]
[352239579,1739013110601,-3805.67,0.00012092,2]
[352239580,1739013110610,-2607.62,0.00012092,2]
[352239581,1739013110625,-3258.61,0.00012092,2]
[352239582,1739013110634,-4739.99,0.00012092,2]
[352239583,1739013110644,-12222.98,0.00012092,2]
[352239584,1739013110653,-3871.33,0.00012092,2]
[352239585,1739013110663,-5557.03,0.00012092,2]
[352239586,1739013110672,-500.0,0.00012092,2]
[352239587,1739013110682,-500.0,0.00012092,2]
[352239588,1739013110691,-8192.71,0.00012092,2]
[352239589,1739013110701,-2796.47,0.00012092,2]
[352239590,1739013110710,-538.39,0.00012092,2]
[352239591,1739013110719,-555.96,0.00012092,2]
[352239592,1739013110729,-1656.22,0.00012092,2]
[352239593,1739013110739,-5463.22,0.00012092,2]
[352239594,1739013110748,-4249.23,0.00012092,2]
[352239595,1739013110757,-4928.16,0.00012092,2]
[352239596,1739013110767,-500.0,0.00012092,2]
[352239597,1739013110776,-500.0,0.00012092,2]
[352239598,1739013110786,-500.0,0.00012092,2]
[352239599,1739013110795,-500.0,0.00012093,2]
[352239600,1739013110805,-500.0,0.00012093,2]
[352239601,1739013110814,-787.27,0.00012093,2]
[352239602,1739013110824,-500.0,0.00012093,2]
[352239603,1739013110833,-500.0,0.00012093,2]
[352239604,1739013110842,-517.87,0.00012093,2]
[352239605,1739013110852,-500.0,0.00012093,2]
[352239606,1739013110861,-500.0,0.00012093,2]
[352239607,1739013110870,-500.0,0.00012093,2]
[352239608,1739013110880,-500.0,0.00012093,2]
[352239609,1739013110889,-500.0,0.00012093,2]
[352239610,1739013110898,-661.99,0.00012093,2]
[352239611,1739013110908,-500.0,0.00012093,2]
[352239612,1739013110917,-821.02,0.00012093,2]
[352239613,1739013110926,-500.0,0.00012093,2]
[352239614,1739013110935,-1772.05,0.00012093,2]
[352239615,1739013110944,-500.0,0.00012093,2]
[352239616,1739013110953,-500.0,0.00012093,2]
[352239617,1739013110963,-500.0,0.00012093,2]
[352239618,1739013110972,-964.41,0.00012093,2]
[352239619,1739013110981,-896.8,0.00012093,2]
[352239620,1739013110991,-500.0,0.00012093,2]
[352239621,1739013111000,-500.0,0.00012093,2]
[352239622,1739013111010,-2054.77,0.00012093,2]
[352239623,1739013111019,-500.0,0.00012093,2]
[352239624,1739013111028,-500.0,0.00012093,2]
[352239625,1739013111038,-1316.88,0.00012093,2]
[352239626,1739013111047,-500.0,0.00012093,2]
[352239627,1739013111058,-500.0,0.00012093,2]
[352239628,1739013111068,-500.0,0.00012093,2]
[352239629,1739013111078,-2052.96,0.00012093,2]
[352239630,1739013111088,-500.0,0.00012093,2]
[352239631,1739013111097,-500.0,0.00012093,2]
[352239632,1739013111106,-500.0,0.00012093,2]
[352239633,1739013111116,-341.31678123,0.00012093,2]
[352239634,1739013111125,-500.0,0.00012093,2]
[352239635,1739013111134,-811.38,0.00012093,2]
[352239636,1739013111144,-1019.72,0.00012093,2]
[352239637,1739013111153,-500.0,0.00012093,2]
[352239638,1739013111163,-500.0,0.00012093,2]
[352239639,1739013111172,-705.84,0.00012093,2]
[352239640,1739013111182,-500.0,0.00012093,2]
[352239641,1739013111191,-2537.39,0.00012093,2]
[352239642,1739013111201,-500.0,0.00012093,2]
[352239643,1739013111211,-716.34,0.00012093,2]
[352239644,1739013111219,-500.0,0.00012093,2]
[352239645,1739013111228,-503.09864372,0.00012093,2]
[352239646,1739013111238,-936.48,0.00012093,2]
[352239647,1739013111248,-1011.69,0.00012093,2]
[352239648,1739013111257,-500.0,0.00012093,2]
[352239649,1739013111267,-500.0,0.00012093,2]
[352239650,1739013111277,-874.09,0.00012093,2]
[352239651,1739013111287,-726.83,0.00012093,2]
[352239652,1739013111297,-500.0,0.00012093,2]
[352239653,1739013111307,-500.0,0.00012093,2]
[352239654,1739013111317,-500.0,0.00012093,2]
[352239655,1739013111327,-500.0,0.00012093,2]
[352239656,1739013111337,-500.0,0.00012093,2]
[352239657,1739013111346,-1536.23,0.00012093,2]
[352239658,1739013111356,-500.0,0.00012093,2]
[352239659,1739013111370,-500.0,0.00012093,2]
[352239660,1739013111379,-773.18,0.00012093,2]
[352239661,1739013111389,-500.0,0.00012093,2]
[352239662,1739013111399,-611.63,0.00012093,2]
[352239663,1739013111408,-532.87,0.00012093,2]
[352239664,1739013111418,-500.0,0.00012093,2]
[352239665,1739013111429,-708.91,0.00012093,2]
[352239666,1739013111439,-500.0,0.00012093,2]
[352239667,1739013111450,-2071.14,0.00012093,2]
[352239668,1739013111460,-500.0,0.00012093,2]
[352239669,1739013111470,-500.0,0.00012093,2]
[352239670,1739013111480,-818.79,0.00012093,2]
[352239671,1739013111490,-500.0,0.00012093,2]
[352239672,1739013111499,-981.65,0.00012093,2]
[352239673,1739013111509,-500.0,0.00012093,2]
[352239674,1739013111518,-500.0,0.00012093,2]
[352239675,1739013111528,-947.55,0.00012093,2]
[352239676,1739013111538,-500.0,0.00012093,2]
[352239677,1739013111548,-2250.99,0.00012093,2]
[352239678,1739013111562,-500.0,0.00012093,2]
[352239679,1739013111572,-500.0,0.00012093,2]
[352239680,1739013111581,-503.78473185,0.00012093,2]
[352239681,1739013111591,-500.0,0.00012093,2]
[352239682,1739013111600,-500.0,0.00012093,2]
[352239683,1739013111609,-500.0,0.00012093,2]
[352239684,1739013111619,-500.0,0.00012093,2]
[352239685,1739013111628,-500.0,0.00012093,2]
[352239686,1739013111638,-500.0,0.00012093,2]
[352239687,1739013111647,-500.0,0.00012093,2]
[352239688,1739013111656,-500.0,0.00012093,2]
[352239689,1739013111666,-504.12043606,0.00012093,2]
[352239690,1739013111677,-500.0,0.00012093,2]
[352239691,1739013111687,-559.06,0.00012093,2]
[352239692,1739013111697,-514.45,0.00012093,2]
[352239693,1739013111706,-504.44546785,0.00012093,2]
[352239694,1739013111716,-500.0,0.00012093,2]
[352239695,1739013111725,-854.4,0.00012093,2]
[352239696,1739013111735,-500.0,0.00012093,2]
[352239697,1739013111745,-224.36246835,0.00012093,2]
[352239698,1739013111754,-513.19,0.00012093,2]
[352239699,1739013111764,-1032.34,0.00012093,2]
[352239700,1739013111773,-500.0,0.00012093,2]
[352239701,1739013111782,-500.0,0.00012093,2]
[352239702,1739013111792,-500.0,0.00012093,2]
[352239703,1739013111803,-500.0,0.00012093,2]
[352239704,1739013111812,-500.0,0.00012093,2]
[352239705,1739013111822,-500.0,0.00012093,2]
[352239706,1739013111831,-1046.28,0.00012093,2]
[352239707,1739013111840,-2383.11,0.00012093,2]
[352239708,1739013111849,-626.31,0.00012093,2]
[352239709,1739013111858,-500.0,0.00012093,2]
[352239710,1739013111867,-614.14,0.00012093,2]
[352239711,1739013111876,-966.17,0.00012093,2]
[352239712,1739013111885,-500.0,0.00012093,2]
[352239713,1739013111894,-1038.87,0.00012093,2]
[352239714,1739013111903,-500.0,0.00012093,2]
[352239715,1739013111913,-500.0,0.00012093,2]
[352239716,1739013111924,-1106.05,0.00012093,2]
[352239717,1739013111934,-500.0,0.00012093,2]
[352239718,1739013111944,-500.0,0.00012093,2]
[352239719,1739013111953,-2015.73,0.00012093,2]
[352239720,1739013111963,-500.0,0.00012093,2]
[352239721,1739013111972,-1931.33,0.00012093,2]
[352239722,1739013111982,-500.0,0.00012093,2]
[352239723,1739013111992,-504.85032126,0.00012093,2]
[352239724,1739013112002,-500.0,0.00012093,2]
[352239725,1739013112012,-500.0,0.00012093,2]
[352239726,1739013112021,-559.49,0.00012093,2]
[352239727,1739013112030,-500.0,0.00012093,2]
[352239728,1739013112039,-500.0,0.00012093,2]
[352239729,1739013112049,-500.0,0.00012093,2]
[352239730,1739013112060,-1077.31,0.00012093,2]
[352239731,1739013112069,-500.0,0.00012093,2]
[352239732,1739013112079,-500.0,0.00012093,2]
[352239733,1739013112089,-932.69,0.00012093,2]
[352239734,1739013112099,-2072.47,0.00012093,2]
[352239735,1739013112108,-2541.69,0.00012093,2]
[352239736,1739013112118,-501.92,0.00012093,2]
[352239737,1739013112128,-500.0,0.00012093,2]
[352239738,1739013112138,-721.58,0.00012093,2]
[352239739,1739013112148,-761.18,0.00012093,2]
[352239740,1739013112158,-500.0,0.00012093,2]
[352239741,1739013112168,-500.0,0.00012093,2]
[352239742,1739013112178,-500.0,0.00012093,2]
[352239743,1739013112187,-4538.82,0.00012093,2]
[352239744,1739013112196,-1724.83,0.00012093,2]
[352239745,1739013112207,-500.0,0.00012093,2]
[352239746,1739013112216,-2030.46,0.00012093,2]
[352239747,1739013112226,-500.0,0.00012093,2]
[352239748,1739013112235,-902.21,0.00012093,2]
[352239749,1739013112245,-500.0,0.00012093,2]
[352239750,1739013112255,-2636.15,0.00012093,2]
[352239751,1739013112264,-2002.7,0.00012093,2]
[352239752,1739013112274,-500.0,0.00012093,2]
[352239753,1739013112283,-705.09,0.00012093,2]
[352239754,1739013112293,-500.0,0.00012093,2]
[352239755,1739013112303,-500.0,0.00012093,2]
[352239756,1739013112313,-2090.85,0.00012093,2]
[352239757,1739013112323,-1600.49,0.00012093,2]
[352239758,1739013112333,-1065.95,0.00012093,2]
[352239759,1739013112342,-2402.98,0.00012093,2]
[352239760,1739013112352,-2859.61,0.00012093,2]
[352239761,1739013112365,-500.0,0.00012093,2]
[352239762,1739013112377,-500.0,0.00012093,2]
[352239763,1739013112387,-500.0,0.00012093,2]
[352239764,1739013112397,-500.0,0.00012093,2]
[352239765,1739013112407,-2754.41,0.00012093,2]
[352239766,1739013112417,-879.4,0.00012093,2]
[352239767,1739013112428,-2692.97,0.00012093,2]
[352239768,1739013112437,-3004.1,0.00012093,2]
[352239769,1739013112447,-5148.76,0.00012093,2]
[352239770,1739013112458,-500.0,0.00012093,2]
[352239771,1739013112468,-1559.38,0.00012093,2]
[352239772,1739013112478,-500.0,0.00012093,2]
[352239773,1739013112487,-500.0,0.00012093,2]
[352239774,1739013112497,-500.0,0.00012093,2]
[352239775,1739013112507,-2843.08,0.00012093,2]
[352239776,1739013112517,-1375.24,0.00012093,2]
[352239777,1739013112526,-2268.82,0.00012093,2]
[352239778,1739013112536,-5022.25,0.00012093,2]
[352239779,1739013112546,-711.21,0.00012093,2]
[352239780,1739013112557,-500.0,0.00012093,2]
[352239781,1739013112567,-1670.67,0.00012093,2]
[352239782,1739013112654,-1399.36,0.00012093,2]
[352239783,1739013112664,-15081.68,0.00012093,2]
[352239784,1739013112674,-1387.07,0.00012093,2]
[352239785,1739013112683,-500.0,0.00012093,2]
[352239786,1739013112693,-6334.51,0.00012093,2]
[352239787,1739013112703,-567.59,0.00012093,2]
[352239788,1739013112713,-500.0,0.00012093,2]
[352239789,1739013112723,-545.26,0.00012093,2]
[352239790,1739013112733,-500.0,0.00012093,2]
[352239791,1739013112742,-2225.81,0.00012093,2]
[352239792,1739013112752,-3509.06,0.00012093,2]
[352239793,1739013112762,-2285.19,0.00012093,2]
[352239794,1739013112772,-5176.3,0.00012093,2]
[352239795,1739013112788,-679.18,0.00012093,2]
[352239796,1739013112798,-2222.63,0.00012093,2]
[352239797,1739013112808,-1424.54,0.00012093,2]
[352239798,1739013112818,-1080.31,0.00012093,2]
[352239799,1739013112827,-3915.69,0.00012093,2]
[352239800,1739013112836,-1682.01,0.00012093,2]
[352239801,1739013112846,-500.0,0.00012093,2]
[352239802,1739013112856,-2047.9,0.00012093,2]
[352239803,1739013112866,-1485.93,0.00012093,2]
[352239804,1739013112876,-6299.13,0.00012093,2]
[352239805,1739013112886,-500.0,0.00012093,2]
[352239806,1739013112896,-3481.83,0.00012093,2]
[352239807,1739013112906,-495.05377375,0.00012093,2]
[352239808,1739013112915,-4781.03,0.00012093,2]
[352239809,1739013112925,-862.73,0.00012093,2]
[352239810,1739013112934,-883.74,0.00012093,2]
[352239811,1739013112943,-875.14,0.00012093,2]
[352239812,1739013112953,-743.76,0.00012093,2]
[352239813,1739013112962,-769.04,0.00012093,2]
[352239814,1739013112971,-500.0,0.00012093,2]
[352239815,1739013112980,-500.0,0.00012093,2]
[352239816,1739013112990,-1609.57,0.00012093,2]
[352239817,1739013112999,-3900.57,0.00012093,2]
[352239818,1739013113009,-2579.73,0.00012093,2]
[352239819,1739013113018,-3578.24,0.00012093,2]
[352239820,1739013113028,-500.0,0.00012093,2]
[352239821,1739013113037,-2832.35,0.00012093,2]
[352239822,1739013113047,-500.0,0.00012093,2]
[352239823,1739013113057,-3996.35,0.00012093,2]
[352239824,1739013113067,-813.25,0.00012093,2]
[352239825,1739013113076,-6617.64,0.00012093,2]
[352239826,1739013113086,-4921.37,0.00012093,2]
[352239827,1739013113095,-701.82,0.00012093,2]
[352239828,1739013113104,-2017.92,0.00012093,2]
[352239829,1739013113113,-755.0,0.00012093,2]
[352239830,1739013113122,-974.03,0.00012093,2]
[352239831,1739013113132,-1908.71,0.00012093,2]
[352239832,1739013113141,-500.0,0.00012093,2]
[352239833,1739013113151,-2729.51,0.00012093,2]
[352239834,1739013113160,-500.0,0.00012093,2]
[352239835,1739013113170,-642.67,0.00012093,2]
[352239836,1739013113180,-2356.49,0.00012093,2]
[352239837,1739013113189,-4684.81,0.00012093,2]
[352239838,1739013113199,-948.63,0.00012093,2]
[352239839,1739013113208,-3928.31,0.00012093,2]
[352239840,1739013113217,-517.62242312,0.00012093,2]
[352239841,1739013113227,-1496.66,0.00012093,2]
[352239842,1739013113236,-578.44955643,0.00012093,2]
[352239843,1739013113245,-500.0,0.00012093,2]
[352239844,1739013113256,-1961.59,0.00012093,2]
[352239845,1739013113265,-500.0,0.00012094,2]
[352239846,1739013113275,-201.45517838,0.00012095,2]
[352239847,1739013113284,-633.17,0.00012095,2]
[352239848,1739013113294,-500.0,0.00012095,2]
[352239849,1739013113303,-554.64366013,0.00012095,2]
[352239850,1739013113313,-654.42,0.00012095,2]
[352239851,1739013113323,-500.0,0.00012095,2]
[352239852,1739013113332,-500.0,0.00012095,2]
[352239853,1739013113342,-500.0,0.00012095,2]
[352239854,1739013113352,-914.6,0.00012095,2]
[352239855,1739013113363,-500.0,0.00012095,2]
[352239856,1739013113375,-517.62060704,0.00012095,2]
[352239857,1739013113384,-500.0,0.00012095,2]
[352239858,1739013113394,-922.56,0.00012095,2]
[352239859,1739013113403,-504.9711384,0.00012095,2]
[352239860,1739013113412,-500.0,0.00012095,2]
[352239861,1739013113421,-637.97,0.00012095,2]
[352239862,1739013113431,-500.0,0.00012095,2]
[352239863,1739013113441,-500.0,0.00012095,2]
[352239864,1739013113450,-649.05009461,0.00012095,2]
[352239865,1739013113459,-500.0,0.00012095,2]
[352239866,1739013113468,-500.0,0.00012095,2]
[352239867,1739013113478,-500.0,0.00012095,2]
[352239868,1739013113487,-500.0,0.00012095,2]
[352239869,1739013113497,-764.68,0.00012095,2]
[352239870,1739013113507,-500.0,0.00012095,2]
[352239871,1739013113516,-500.0,0.00012095,2]
[352239872,1739013113525,-500.0,0.00012095,2]
[352239873,1739013113534,-634.37,0.00012095,2]
[352239874,1739013113543,-598.43,0.00012095,2]
[352239875,1739013113553,-500.0,0.00012095,2]
[352239876,1739013113563,-500.0,0.00012095,2]
[352239877,1739013113573,-500.0,0.00012095,2]
[352239878,1739013113583,-500.0,0.00012095,2]
[352239879,1739013113592,-500.0,0.00012095,2]
[352239880,1739013113602,-882.42,0.00012095,2]
[352239881,1739013113612,-506.77133528,0.00012095,2]
[352239882,1739013113621,-643.91314494,0.00012095,2]
[352239883,1739013113630,-500.0,0.00012095,2]
[352239884,1739013113639,-783.22,0.00012095,2]
[352239885,1739013113648,-503.1,0.00012095,2]
[352239886,1739013113658,-500.0,0.00012095,2]
[352239887,1739013113667,-500.0,0.00012095,2]
[352239888,1739013113676,-500.0,0.00012095,2]
[352239889,1739013113685,-500.0,0.00012095,2]
[352239890,1739013113694,-500.0,0.00012095,2]
[352239891,1739013113703,-895.58,0.00012095,2]
[352239892,1739013113712,-500.0,0.00012095,2]
[352239893,1739013113722,-500.0,0.00012095,2]
[352239894,1739013113731,-500.0,0.00012095,2]
[352239895,1739013113740,-500.0,0.00012095,2]
[352239896,1739013113749,-898.09,0.00012095,2]
[352239897,1739013113759,-500.0,0.00012095,2]
[352239898,1739013113768,-600.0,0.00012095,2]
[352239899,1739013113778,-433.16786544,0.00012095,2]
[352239900,1739013113787,-500.0,0.00012095,2]
[352239901,1739013113797,-500.0,0.00012095,2]
[352239902,1739013113806,-500.0,0.00012095,2]
[352239903,1739013113815,-500.0,0.00012095,2]
[352239904,1739013113824,-500.0,0.00012095,2]
[352239905,1739013113834,-503.79,0.00012095,2]
[352239906,1739013113843,-160.14704442,0.00012095,2]
[352239907,1739013113853,-500.0,0.00012095,2]
[352239908,1739013113862,-500.0,0.00012095,2]
[352239909,1739013113871,-500.0,0.00012095,2]
[352239910,1739013113880,-500.0,0.00012095,2]
[352239911,1739013113890,-500.0,0.00012095,2]
[352239912,1739013113899,-500.0,0.00012095,2]
[352239913,1739013113908,-500.0,0.00012095,2]
[352239914,1739013113917,-651.32,0.00012095,2]
[352239915,1739013113926,-711.88,0.00012095,2]
[352239916,1739013113937,-526.52,0.00012095,2]
[352239917,1739013113946,-500.0,0.00012095,2]
[352239918,1739013113955,-946.77,0.00012095,2]
[352239919,1739013113964,-1188.28,0.00012095,2]
[352239920,1739013113973,-500.0,0.00012095,2]
[352239921,1739013113983,-891.2,0.00012095,2]
[352239922,1739013113992,-500.0,0.00012095,2]
[352239923,1739013114001,-500.0,0.00012095,2]
[352239924,1739013114010,-500.0,0.00012095,2]
[352239925,1739013114020,-295.25351486,0.00012095,2]
[352239926,1739013114029,-500.0,0.00012095,2]
[352239927,1739013114038,-1073.14,0.00012095,2]
[352239928,1739013114047,-500.0,0.00012095,2]
[352239929,1739013114056,-500.0,0.00012095,2]
[352239930,1739013114066,-621.38,0.00012095,2]
[352239931,1739013114075,-500.0,0.00012095,2]
[352239932,1739013114085,-500.0,0.00012095,2]
[352239933,1739013114094,-602.2,0.00012095,2]
[352239934,1739013114103,-500.0,0.00012095,2]
[352239935,1739013114113,-502.46,0.00012095,2]
[352239936,1739013114122,-1923.99,0.00012095,2]
[352239937,1739013114131,-190.56967336,0.00012095,2]
[352239938,1739013114141,-500.0,0.00012095,2]
[352239939,1739013114150,-1042.08,0.00012095,2]
[352239940,1739013114160,-753.74,0.00012095,2]
[352239941,1739013114169,-721.0,0.00012095,2]
[352239942,1739013114179,-604.54,0.00012095,2]
[352239943,1739013114188,-603.14,0.00012095,2]
[352239944,1739013114198,-860.81,0.00012095,2]
[352239945,1739013114207,-890.4,0.00012095,2]
[352239946,1739013114216,-931.55,0.00012095,2]
[352239947,1739013114225,-1239.47,0.00012095,2]
[352239948,1739013114234,-2019.59,0.00012095,2]
[352239949,1739013114244,-755.49,0.00012095,2]
[352239950,1739013114253,-500.0,0.00012095,2]
[352239951,1739013114262,-837.9,0.00012095,2]
[352239952,1739013114272,-500.0,0.00012095,2]
[352239953,1739013114281,-572.48,0.00012095,2]
[352239954,1739013114290,-500.0,0.00012095,2]
[352239955,1739013114300,-1033.35,0.00012095,2]
[352239956,1739013114309,-500.0,0.00012095,2]
[352239957,1739013114318,-2008.9,0.00012095,2]
[352239958,1739013114328,-500.0,0.00012095,2]
[352239959,1739013114338,-500.0,0.00012095,2]
[352239960,1739013114348,-500.0,0.00012095,2]
[352239961,1739013114358,-696.95,0.00012095,2]
[352239962,1739013114371,-723.92,0.00012095,2]
[352239963,1739013114382,-500.0,0.00012095,2]
[352239964,1739013114392,-504.96,0.00012095,2]
[352239965,1739013114402,-2033.67,0.00012095,2]
[352239966,1739013114413,-500.0,0.00012095,2]
[352239967,1739013114422,-2296.52,0.00012095,2]
[352239968,1739013114432,-500.0,0.00012095,2]
[352239969,1739013114441,-1085.81,0.00012095,2]
[352239970,1739013114451,-500.0,0.00012095,2]
[352239971,1739013114462,-929.17,0.00012095,2]
[352239972,1739013114471,-500.0,0.00012095,2]
[352239973,1739013114481,-727.02,0.00012095,2]
[352239974,1739013114491,-991.68,0.00012095,2]
[352239975,1739013114500,-500.0,0.00012095,2]
[352239976,1739013114509,-500.0,0.00012095,2]
[352239977,1739013114519,-504.40373303,0.00012095,2]
[352239978,1739013114529,-500.56,0.00012095,2]
[352239979,1739013114539,-775.33,0.00012095,2]
[352239980,1739013114548,-500.0,0.00012095,2]
[352239981,1739013114558,-746.97,0.00012095,2]
[352239982,1739013114567,-1543.04,0.00012095,2]
[352239983,1739013114578,-500.0,0.00012095,2]
[352239984,1739013114587,-987.5,0.00012095,2]
[352239985,1739013114597,-500.0,0.00012095,2]
[352239986,1739013114606,-500.0,0.00012095,2]
[352239987,1739013114616,-2244.47,0.00012095,2]
[352239988,1739013114625,-500.0,0.00012095,2]
[352239989,1739013114635,-850.11,0.00012095,2]
[352239990,1739013114644,-500.0,0.00012095,2]
[352239991,1739013114653,-738.4,0.00012095,2]
[352239992,1739013114663,-500.0,0.00012095,2]
[352239993,1739013114672,-2170.82,0.00012095,2]
[352239994,1739013114682,-883.23,0.00012095,2]
[352239995,1739013114691,-500.0,0.00012095,2]
[352239996,1739013114701,-500.0,0.00012095,2]
[352239997,1739013114711,-500.0,0.00012095,2]
[352239998,1739013114720,-261.19212945,0.00012095,2]
[352239999,1739013114730,-1022.79,0.00012095,2]
[352240000,1739013114740,-500.0,0.00012095,2]
[352240001,1739013114749,-500.0,0.00012095,2]
[352240002,1739013114759,-500.0,0.00012095,2]
[352240003,1739013114768,-1744.67,0.00012095,2]
[352240004,1739013114778,-815.19,0.00012095,2]
[352240005,1739013114788,-503.52,0.00012095,2]
[352240006,1739013114797,-721.28,0.00012095,2]
[352240007,1739013114806,-505.795671,0.00012095,2]
[352240008,1739013114815,-500.0,0.00012095,2]
[352240009,1739013114824,-500.0,0.00012095,2]
[352240010,1739013114834,-500.0,0.00012095,2]
[352240011,1739013114843,-833.37,0.00012095,2]
[352240012,1739013114853,-556.41310967,0.00012095,2]
[352240013,1739013114863,-869.88,0.00012095,2]
[352240014,1739013114872,-500.0,0.00012095,2]
[352240015,1739013114882,-500.0,0.00012095,2]
[352240016,1739013114892,-500.0,0.00012095,2]
[352240017,1739013114902,-1093.73,0.00012095,2]
[352240018,1739013114911,-500.0,0.00012095,2]
[352240019,1739013114920,-665.78,0.00012095,2]
[352240020,1739013114930,-1222.11,0.00012095,2]
[352240021,1739013114939,-500.0,0.00012095,2]
[352240022,1739013114949,-500.0,0.00012095,2]
[352240023,1739013114958,-490.76935204,0.00012095,2]
[352240024,1739013114968,-508.71,0.00012095,2]
[352240025,1739013114977,-500.0,0.00012095,2]
[352240026,1739013114987,-508.69046514,0.00012095,2]
[352240027,1739013114997,-557.94,0.00012095,2]
[352240028,1739013115006,-500.0,0.00012095,2]
[352240029,1739013115015,-158.43194889,0.0001211,2]
[352240030,1739013115025,-797.14,0.00012168,2]
[352240031,1739013115034,-1731.03,0.00012168,2]
[352240032,1739013115043,-668.35,0.00012168,2]
[352240033,1739013115052,-2004.66,0.00012168,2]
[352240034,1739013115061,-1077.05,0.00012168,2]
[352240035,1739013115070,-2089.48,0.00012168,2]
[352240036,1739013115079,-500.0,0.00012168,2]
[352240037,1739013115087,-1253.82,0.00012168,2]